Cogmind - Beta 13 @@@ ROGUE MODE // 2024.05.13 @ 12:35:47 // Winter2019/RPGLIKE Player: boggy Result: Destroyed by Y-45 Defender with Heavy Assault Rifle Performance ------------- Evolutions (1) 500 Regions Visited (3) 600 Robots Destroyed (52) 260 Value Destroyed (1030) 1030 Prototype IDs (2) 40 Alien Tech Used (0) 0 Bonus (94) 94 TOTAL SCORE: 2524 Bonus ------- High Alert Combat Kills 94 Cogmind --------- Core Integrity 0/600 Matter 5/600 Energy 250/250 System Corruption 0% Temperature Cool (9) Movement Rolling (95) Ox1 Location -9/Materials Parts ------- > --- POWER (1) -------- Ion Engine > --- PROPULSION (1) --- Wheel > --- UTILITY (3) ------ Targeting Computer Light Armor Plating > --- WEAPON (3) ------- Heavy Assault Rifle Grenade Launcher Makeshift Spear > --- INVENTORY (0) ---- (None) Peak State ------------ > --- POWER ------------ Ion Engine > --- PROPULSION ------- Wheel > --- UTILITY ---------- Targeting Computer Light Armor Plating > --- WEAPON ----------- Heavy Assault Rifle Grenade Launcher Makeshift Spear > --- INVENTORY -------- (None) [Rating: 11] Favorites ----------- Power Ion Engine Engine Ion Engine Propulsion Wheel Wheel Wheel Utility Targeting Computer Device Improved Terrain Scanner Processor Targeting Computer Protection Light Armor Plating Weapon Heavy Assault Rifle Ballistic Gun Heavy Assault Rifle Launcher Grenade Launcher Piercing Weapon Makeshift Spear Build | -11 -10 -10 -9 ------- Run | Yrd Mat Min Mat Slots Evolved 4 | . 2 2 . Power . | . . . . Propulsion . | . . . . Utility 2 | . . 2 . Weapon 2 | . 2 . . Parts Attached 13 | 4 4 3 2 Power 2 | 1 . 1 . Engine 2 | 1 . 1 . Core . | . . . . Reactor . | . . . . Propulsion 2 | 1 . 1 . Treads . | . . . . Leg . | . . . . Wheel 2 | 1 . 1 . Hover . | . . . . Flight . | . . . . Utility 3 | 1 1 . 1 Device 1 | 1 . . . Storage . | . . . . Processor 1 | . 1 . . Hackware . | . . . . Protection 1 | . . . 1 Artifact . | . . . . Weapon 6 | 1 3 1 1 Energy Gun . | . . . . Energy Cannon . | . . . . Ballistic Gun 3 | 1 2 . . Ballistic Cannon . | . . . . Launcher 2 | . 1 . 1 Special Weapon . | . . . . Impact Weapon . | . . . . Slashing Weapon . | . . . . Piercing Weapon 1 | . . 1 . Special Melee Weapon . | . . . . Unidentified Prototypes . | . . . . Parts Lost . | . . . . Power . | . . . . Propulsion . | . . . . Utility . | . . . . Weapon . | . . . . Highest Loss Streak . | . . . . To Critical Strikes . | . . . . Average Slot Usage (%) 91 | . 93 87 83 Engine 16 | . 18 14 12 Wheel 16 | . 18 14 12 Device 1 | . 1 . . Processor 15 | . 16 14 12 Ballistic Gun 18 | . 19 18 12 Launcher 16 | . 17 14 9 Piercing Weapon 3 | . . 9 12 Naked Turns . | . . . . Heaviest Build 16 | 8 14 14 16 Greatest Support 15 | 10 10 15 15 Greatest Overweight (x) 1 | . 1 1 1 Average Overweight (x) . | . . . . Largest Inventory Capacity . | . . . . Average Capacity . | . . . . Most Carried . | . . . . Average Carried . | . . . . Final Capacity . | . . . . Final Carried . | . . . . Class Distribution -------------------- 60% | Hacker-Mutant 23% | Hacker-Bomber 16% | Hacker-Gunner Dominant Class ---------------- Hacker-Mutant | -10/Materials Hacker-Mutant | -10/Mines Hacker-Mutant | -9/Materials Resources | -11 -10 -10 -9 ----------- Run | Yrd Mat Min Mat Matter Collected 1217 | 313 538 357 9 Remotely . | . . . . Salvage Created 651 | 220 169 243 19 Parts 88 | 18 30 24 16 Haulers Intercepted 1 | . 1 . . Recyclers Shooed . | . . . . Parts Field Recycled . | . . . . Retrieved Matter . | . . . . Parts Self-Destructed . | . . . . Prevented . | . . . . Kills | -11 -10 -10 -9 ------- Run | Yrd Mat Min Mat Combat Hostiles Destroyed 29 | . 12 12 5 Melee 4 | . . 3 1 Guns 3 | . 2 1 . AOE 22 | . 10 8 4 Classes Destroyed 8 | 3 5 . . Worker 5 | 2 3 . . Builder 2 | . 2 . . Tunneler 11 | 5 . 5 1 Hauler 1 | . 1 . . Recycler 1 | 1 . . . Watcher 3 | . 2 . 1 Swarmer 15 | . 4 6 5 Grunt 14 | . 8 6 . Best Kill Streak 9 | 3 9 8 6 Combat Bots Only 7 | . 7 4 4 Max Kills in Single Turn 3 | 1 2 3 3 Gunslinging . | . . . . Exploded 2 | . 1 2 2 Melee 1 | . . 1 1 Uniques/NPCs Destroyed . | . . . . Combat | -11 -10 -10 -9 -------- Run | Yrd Mat Min Mat Hostile Shots Fired 95 | . 11 53 31 Missed 28 | . 6 17 5 Damage Taken 977 | . 149 441 387 Core 749 | . 116 358 275 Absorbed by Shields . | . . . . Redirected to Core 597 | . 103 268 226 Regen/Repaired (Parts) 35 | . . . 35 Core Remaining (%) 71 | 100 . 42 . Volleys Fired 123 | 33 58 20 12 Largest 3 | 1 3 3 2 Hottest 76 | 20 76 76 53 Shots Fired 195 | 33 99 43 20 Gun 115 | 33 45 25 12 Cannon . | . . . . Launcher 80 | . 54 18 8 Special . | . . . . Kinetic 115 | 33 45 25 12 Thermal . | . . . . Explosive 80 | . 54 18 8 Electromagnetic . | . . . . Robot Hit Streak 8 | 8 8 1 1 Robot Miss Streak 3 | 3 1 2 1 Penetration Max . | . . . . Secondary Targets . | . . . . Shots Hit Robots 43 | 21 12 8 2 Core Hits 80 | 9 36 26 9 Critical Kills . | . . . . Critical Parts Destroyed . | . . . . Critical Strikes . | . . . . Melee Attacks 11 | . . 8 3 Impact . | . . . . Slashing . | . . . . Piercing 11 | . . 8 3 Sneak Attacks . | . . . . Combat Hostiles . | . . . . Follow-up Attacks . | . . . . Damage Inflicted 3134 | 271 1408 946 509 Guns 548 | 271 144 74 59 Cannons . | . . . . Explosions 2487 | . 1264 797 426 Melee 99 | . . 75 24 Ramming . | . . . . Kinetic 548 | 271 144 74 59 Thermal . | . . . . Explosive 2487 | . 1264 797 426 Electromagnetic . | . . . . Impact . | . . . . Slashing . | . . . . Piercing 99 | . . 75 24 Highest Corruption 1 | . 1 1 . Average Corruption 1 | . 1 1 . Corruption Purged . | . . . . Corruption Blocked . | . . . . Effects 11 | . 7 4 . Message Errors 3 | . 2 1 . Matter Fused 5 | . 3 2 . Data Loss (minor) 1 | . 1 . . Misfires 1 | . 1 . . Alerts 1 | . . 1 . Overload Shots . | . . . . Overflow Damage 71 | . 13 58 . Projectiles . | . . . . Explosions 71 | . 13 58 . Melee . | . . . . Knockbacks . | . . . . Impact . | . . . . Kinetic . | . . . . Secondary . | . . . . Self-Inflicted Damage 196 | . 104 28 64 Shots 8 | . 5 1 2 Rammed . | . . . . Targets Rammed . | . . . . Kicked . | . . . . Crushed . | . . . . Highest Temperature 67 | . 67 45 18 Average Temperature 17 | . 18 18 8 Received Heat Transfer 231 | . 18 141 72 Siege Activations . | . . . . Robots Corrupted . | . . . . Combat Hostiles . | . . . . Parts Fried . | . . . . Impact Corruptions . | . . . . Robots Melted . | . . . . Combat Hostiles . | . . . . Parts Melted . | . . . . Heat Transferred . | . . . . Parts Sabotaged . | . . . . Parts Stolen . | . . . . Parts Stripped . | . . . . Power Chain Reactions . | . . . . Alert | -11 -10 -10 -9 ------- Run | Yrd Mat Min Mat Peak Influence 816 | 40 816 719 522 Initial 292 | . 26 292 280 Average 488 | 17 587 490 360 Maximum Alert Level 3 | . 3 3 2 Low Security (%) 15 | 100 8 . . Level 1 17 | . 9 33 56 Level 2 42 | . 43 59 43 Level 3 24 | . 39 7 . Level 4 . | . . . . Level 5 . | . . . . High Security . | . . . . Max Security . | . . . . Squads Dispatched 4 | . 3 . 1 Investigation 2 | . 2 . . Extermination . | . . . . Reinforcement 2 | . 1 . 1 Assault . | . . . . Garrison . | . . . . Intercept . | . . . . Searches Triggered . | . . . . Construction Impeded . | . . . . Haulers Reinforced . | . . . . Active Scanning Responses . | . . . . Cargo Convoy Interrupts . | . . . . Stealth | -11 -10 -10 -9 --------- Run | Yrd Mat Min Mat Distress Signals 3 | . 1 . 2 Communications Jammed . | . . . . Distress Signals . | . . . . Times Spotted 43 | . 18 12 13 Peak Tracking Total 9 | . 3 5 9 Tactical Retreats 3 | . 3 . . Traps | -11 -10 -10 -9 ------- Run | Yrd Mat Min Mat Traps Triggered 1 | . 1 . . Indirectly . | . . . . Trap Hack Attempts . | . . . . Triggered . | . . . . Disarmed . | . . . . Reprogrammed . | . . . . Reused . | . . . . Traps Extracted . | . . . . Installed . | . . . . Triggered . | . . . . Machines | -11 -10 -10 -9 ---------- Run | Yrd Mat Min Mat Machines Disabled 23 | . 20 2 1 Max in Single Turn 2 | . 2 1 1 Machines Repaired . | . . . . Machines Dismantled . | . . . . Machines Sabotaged . | . . . . Overloaded Fab Kills . | . . . . Hacking | -11 -10 -10 -9 --------- Run | Yrd Mat Min Mat Machines Accessed 6 | . 5 . 1 Terminals 5 | . 5 . . Fabricators . | . . . . Repair Stations 1 | . . . 1 Recycling Units . | . . . . Scanalyzers . | . . . . Garrison Access . | . . . . Total Hacks 25 | . 23 . 2 Successful 17 | . 15 . 2 Failed 8 | . 8 . . Catastrophic . | . . . . Database Lockouts . | . . . . Manual . | . . . . Terminals 23 | . 23 . . Fabricators . | . . . . Repair Stations 2 | . . . 2 Recycling Units . | . . . . Scanalyzers . | . . . . Garrison Access . | . . . . Terminal Hacks 15 | . 15 . . Record 3 | . 3 . . Prototype ID Bank 1 | . 1 . . Branch Access Points 1 | . 1 . . Emergency Access Points 1 | . 1 . . Locate Traps 1 | . 1 . . Maintenance Status 1 | . 1 . . Transport Status 2 | . 2 . . Investigation Status 1 | . 1 . . Recall Investigation 1 | . 1 . . Hauler Manifests 1 | . 1 . . Registered Prototypes 1 | . 1 . . Zone Layout 1 | . 1 . . Fabricator Hacks . | . . . . Repair Station Hacks 2 | . . . 2 Scan Component 1 | . . . 1 Repair 1 | . . . 1 Recycling Unit Hacks . | . . . . Scanalyzer . | . . . . Garrison Access Hacks . | . . . . Unauthorized Hacks . | . . . . Terminals . | . . . . Fabricators . | . . . . Repair Stations . | . . . . Recycling Units . | . . . . Scanalyzers . | . . . . Garrison Access . | . . . . Data Cores Recovered . | . . . . Used . | . . . . Hacking Detections 5 | . 5 . . Full Trace Events 2 | . 2 . . Feedback Events 1 | . 1 . . Corruption 1 | . 1 . . Feedback Blocked . | . . . . Robot Schematics Acquired . | . . . . Robots Built . | . . . . Authchips . | . . . . Time . | . . . . Total Robot Build Rating . | . . . . Part Schematics Acquired . | . . . . Parts Built . | . . . . Authchips . | . . . . Time . | . . . . Total Part Build Rating . | . . . . Parts Repaired 1 | . . . 1 Time 26 | . . . 26 Parts Recycled . | . . . . Recycled Matter . | . . . . Retrieved Matter . | . . . . Retrieved Components . | . . . . Parts Scanalyzed . | . . . . Part Schematics Acquired . | . . . . Parts Damaged . | . . . . Bothacking | -11 -10 -10 -9 ------------ Run | Yrd Mat Min Mat Used RIF Installer . | . . . . Robots Hacked . | . . . . Non-combat . | . . . . Combat . | . . . . Robot Hacks Applied . | . . . . Relay Couplers Released . | . . . . Fabnet Peak Effective % . | . . . . Robots Rewired . | . . . . Allies Hacked . | . . . . Hacks Repelled . | . . . . Allies | -11 -10 -10 -9 -------- Run | Yrd Mat Min Mat Total Allies . | . . . . Largest Group . | . . . . Highest-Rated Group . | . . . . Highest-Rated Ally . | . . . . Total Orders . | . . . . Ally Attacks . | . . . . Total Damage . | . . . . Kills . | . . . . Allies Corrupted . | . . . . Allies Melted . | . . . . Intel | -11 -10 -10 -9 ------- Run | Yrd Mat Min Mat Robot Analysis Total . | . . . . Derelict Logs Recovered 1 | . . 1 . Drone Launches . | . . . . Drone Recoveries . | . . . . Exploration | -11 -10 -10 -9 ------------- Run | Yrd Mat Min Mat Turns Passed 1556 | 163 916 357 120 Spaces Moved 1330 | 115 850 309 56 Core 1 | 1 . . . Treads . | . . . . Legs . | . . . . Wheels 1329 | 114 850 309 56 Hover . | . . . . Flight . | . . . . Fastest Speed 50 | 50 80 80 80 Average Speed 87 | 79 88 88 93 Slowest Speed 95 | 80 95 95 95 Overloaded Moves . | . . . . Propulsion Burnouts . | . . . . Robots Hopped . | . . . . Cave-ins Triggered . | . . . . Exploration Rate (%) 44 | 4 96 63 13 Regions Visited 3 Branch Regions 1 Pre-discovered Areas . | . . . . Known Exits Taken 1 | . 1 . . Unknown Exits Taken 2 | 1 . 1 . Scrap Searched . | . . . . Spaces Dug . | . . . . Terrain Destroyed 497 | . 342 107 48 Melee . | . . . . Projectile . | . . . . AOE 497 | . 342 107 48 Terrain Rammed . | . . . . Walls Destroyed . | . . . . Machines Disabled . | . . . . Actions | -11 -10 -10 -9 --------- Run | Yrd Mat Min Mat Total 1525 | 151 928 346 100 Wait 38 | . 12 . 26 Move 1327 | 114 849 308 56 Hop . | . . . . Pick Up . | . . . . Fast Attach 11 | 4 4 1 2 Attach . | . . . . Detach . | . . . . Swap 2 | . . 2 . Drop 5 | . 2 3 . Fire 123 | 33 58 20 12 Melee 11 | . . 8 3 Ram . | . . . . Kick . | . . . . Crush . | . . . . Escape Stasis . | . . . . Rewire . | . . . . Trap . | . . . . Miscellaneous 8 | . 3 4 1 Route ------- -11/Scrapyard -10/Materials (discovered 4 exits: *Mat x3 / *Min) -10/Mines -9/Materials History --------- Turn | Location | Event 11 | -11/Scrapyard | Discovered new exit (range 16) 164 | -11/Scrapyard | Entered Materials 291 | -10/Materials | Destroyed 7 combat bots 300 | -10/Materials | Build established: Hacker-Mutant 331 | -10/Materials | Discovered new exit (range 15) 380 | -10/Materials | Reached level 2 382 | -10/Materials | Upgraded with Weapon slot (x2) 462 | -10/Materials | Discovered new exit (range 13) 535 | -10/Materials | Discovered new exit (range 16) 624 | -10/Materials | Identified exit to Mines 690 | -10/Materials | Discovered new exit (range 10) 839 | -10/Materials | Reached level 3 856 | -10/Materials | Build established: Hacker-Bomber 1080 | -10/Materials | Entered Mines 1082 | -10/Mines | Met a Derelict bent on vengeance 1162 | -10/Mines | A weapon hastily lodged in a ceiling crevice suddenly fell to the ground 1275 | -10/Mines | Reached level 4 1278 | -10/Mines | Upgraded with Utility slot (x2) 1308 | -10/Mines | Learned Materials emergency access door positions 1369 | -10/Mines | Discovered new exit (range 12) 1380 | -10/Mines | Excavation squad dispatched 1380 | -10/Mines | A large section of the Mines collapsed 1389 | -10/Mines | Core integrity fell below 50% 1437 | -10/Mines | Entered Materials 1438 | -9/Materials | Core integrity fell below 50% 1439 | -9/Materials | Reached level 5 1464 | -9/Materials | Build established: Hacker-Mutant 1482 | -9/Materials | Repaired Grenade Launcher 1538 | -9/Materials | Core integrity fell below 20% 1557 | -9/Materials | Destroyed by Y-45 Defender with Heavy Assault Rifle Last Messages --------------- 01538_ U-05 Engineer builds a Wall. 01539_ K-01 Serf collects debris. 01540_ K-01 Serf cleans the Terminal. 01543_ The unstable cave ceiling collapses. 01543_ U-05 Engineer lays Concrete. 01544_ K-01 Serf collects debris. 01544_ U-05 Engineer lays Concrete. 01545_ U-05 Engineer builds a Wall. 01548_ K-01 Serf collects debris. 01548_ W-16 Scout sends out distress signal. 01550_ U-05 Engineer lays Concrete. 01550_ K-01 Serf collects debris. 01550_ K-01 Serf cleans the Terminal. 01551_ K-01 Serf destroyed. 01552_ K-01 Serf collects debris. 01554_ ALERT: Hostiles spotted, dispatching reinforcements to Terminal M003. 01556_ S-10 Pest destroyed. 01557_ U-05 Engineer lays Concrete. 01557_ K-01 Serf collects debris. Map ----- +----------------------------------------------------+ | ????????????????????????????????????????????? | | ????????????????????????????????????????????? | | ????????????????????????????????????????????? | | ????????????????????????????????????????????? | | ????????????????????????????????????????????? | | ????????????????????????????????????????????? | | ????????????????????????????????????????????? | | ????????????????????????????????????????????? | | ????????????????????????????????????????????? | | ???????????????????????????????????????+????? | | ????????????????????????????????????????????? | | ???????????????????#????????????????????????? | | ?????????????????##Y#???????????????????????? | | ????????????????? ???????????????????????? | | ????????????????? ???????????????????????? | | ????????????????? ???????????????????????? | | ????????????????? #??????????????????????? | | ??????????????#? #???#??????????????????? | | ??????????????# """ #?? #??????????????????? | | ??????????????# """= #? ???????????????????? | | ???#??##??????# """%s#? ????????????????????? | | ???# ## ?????# *!# #? ???????????????? | | ???# # ###### ! # # ???????????????? | | ???# [ # =s/? + ?????????????????? | | ???# # "Y"s# #??????????????????? | | ???# # """@# #??????????????????? | | ???# !!! ##### #??????????????????? | | ????# !!! # w #???????+??????????? | | ?????# !! # #"T"# ?????????????? | | ?????# * #????????????? | | ?????# #????????????? | | ?????# " #????????????? | | ?????####### """ """ T #????????????? | | ?????# """ """ " ?????????????? | | ?????# [ = """ ?????????????? | | ?????# / =*== * ???????????? | | ?????# =* u %! ???????????? | | ?????# k ##### ########????????????? | | ?????## # ### #???????????????????? | | ??????# ### #?? #???????????????????? | | ??????# #?# """ ???????????????????????? | | ??????# #?# """ ???????????????????????? | | ??????# #?# """ #??????????????????????? | | ??????# #?# ???????????????????????? | | ####### ###### # #???????????????????????? | | # # #=! ####???????????????????????? | | # # #!! #??????????????????????????? | | # # # #??????????????????????????? | | # + + " " #??????????????????????????? | | # # # "R" #??????????????????????????? | +----------------------------------------------------+ Best States ------------- Heat Dissipation 25 Energy Generation 10 Energy Capacity 250 Matter Stores 300 Matter Capacity 600 Sight Range 16 Robot Scan Range 4 Terrain Scan Range 16 Terrain Scan Density 10 Armor Coverage 150 Evasion (%) 44 Targeting Accuracy 5 Offensive Hacking 30 Defensive Hacking 5 Item Schematics ----------------- None Robot Schematics ------------------ None Fabricated ------------ Nothing Alien Tech Used ----------------- None Achievements -------------- None Challenges ------------ None RPGLIKE | -11 -10 -10 -9 --------- Run | Yrd Mat Min Mat Levels Raised 4 | . 2 1 1 XP Earned 10291 | 3000 3103 2026 2162 XP Spent 9000 | 3000 2700 1725 1575 Upgrades 21 | 5 4 6 6 Utility Slot 2 | . . 2 . Weapon Slot 2 | . 2 . . Matter Storage 6 | . . 1 5 Mass Support 1 | . . 1 . Sensor Range 2 | . . 2 . Hack Attack % 6 | 5 1 . . Hack Defense % 1 | . . . 1 EX Damage % 1 | . 1 . . Protomatter Created 188 | . 117 56 15 Integrity Restored 148 | . 40 96 12 Core 142 | . 34 96 12 Parts 6 | . 6 . . Protomatter Decayed 103 | . 79 24 . Game ------ Seed AssembledImprovedCannon Manual? 0 Play Time 00:15:10 Cumulative 25.2 hours Start 2024.05.13 @ 12:19:58 End 2024.05.13 @ 12:35:47 Sessions 1 Manual Loads 0 Difficulty Rogue Special Mode Winter2019/RPGLIKE Game No. 25 Rogue 25 Adventurer 0 Explorer 0 Win Type - Total 0 Types 0/0/0/0/0/0/0/0/0 Lore% 19 Gallery% 21 Achievement% 26 Wizard Run 0 Options --------- Layout 0 ASCII 0 Keyboard 0 Movement Mouse Keybinds 0 Fullscreen 2 Font 14/SmallcapsGlow Map View 36x27 Zoom Use 100% Tactical HUD 1 Map Filters NONE Filters NONE Steam 1 RUN: 234aa9a9-423b-4a44-b4a8-1eb90202a51d